[Event "*** SCC Grand Prix: Titled Tuesday Blitz"]
[Site "Chess.com"]
[Date "2020.10.06"]
[Round "8"]
[White "elamier"]
[Black "keepitcoming"]
[Result "1/2-1/2"]
[WhiteElo "2362"]
[BlackElo "2471"]
[TimeControl "180+1"]
[EndTime "11:34:24 PDT"]
[Termination "Game drawn by repetition"]

1. d4 {[%clk 0:03:00.9]} 1... d5 {[%clk 0:02:58.7]} 2. Nf3 {[%clk 0:02:59.9]}
2... Nf6 {[%clk 0:02:57.9]} 3. e3 {[%clk 0:02:59.9]} 3... Bf5 {[%clk 0:02:57.6]}
4. Ne5 {[%clk 0:03:00]} 4... e6 {[%clk 0:02:53.5]} 5. g4 {[%clk 0:02:59.3]} 5...
Bg6 {[%clk 0:02:39.5]} 6. h4 {[%clk 0:02:59.2]} 6... Bb4+ {[%clk 0:02:34.8]} 7.
Bd2 {[%clk 0:02:56.6]} 7... Bd6 {[%clk 0:02:30.3]} 8. h5 {[%clk 0:02:54.4]} 8...
Be4 {[%clk 0:02:29.1]} 9. f3 {[%clk 0:02:53.9]} 9... Nbd7 {[%clk 0:02:22.8]} 10.
fxe4 {[%clk 0:02:39.5]} 10... Nxe4 {[%clk 0:02:19.6]} 11. Nc3 {[%clk 0:02:21.2]}
11... Ng3 {[%clk 0:02:16.2]} 12. Rh3 {[%clk 0:02:19.4]} 12... Nxf1 {[%clk
0:02:17.1]} 13. Kxf1 {[%clk 0:02:18.3]} 13... Nxe5 {[%clk 0:02:08.4]} 14. dxe5
{[%clk 0:02:18.2]} 14... Bxe5 {[%clk 0:02:09.3]} 15. Qf3 {[%clk 0:02:16.9]}
15... Qe7 {[%clk 0:02:02.8]} 16. Ke2 {[%clk 0:02:14.6]} 16... O-O-O {[%clk
0:02:00.8]} 17. Rf1 {[%clk 0:02:13.7]} 17... f6 {[%clk 0:01:55.4]} 18. Kd1
{[%clk 0:02:13.5]} 18... d4 {[%clk 0:01:52.7]} 19. exd4 {[%clk 0:02:13.1]} 19...
Rxd4 {[%clk 0:01:50.1]} 20. Kc1 {[%clk 0:02:12.4]} 20... Rhd8 {[%clk 0:01:45.8]}
21. Be3 {[%clk 0:02:03.8]} 21... Rc4 {[%clk 0:01:45.9]} 22. Ne4 {[%clk
0:01:57.6]} 22... Bxb2+ {[%clk 0:01:41.3]} 23. Kxb2 {[%clk 0:01:52.3]} 23...
Qb4+ {[%clk 0:01:41.4]} 24. Ka1 {[%clk 0:01:49.7]} 24... Rxe4 {[%clk 0:01:40.3]}
25. Bc1 {[%clk 0:01:40.9]} 25... Rxg4 {[%clk 0:01:35.7]} 26. h6 {[%clk
0:01:33.6]} 26... f5 {[%clk 0:01:28.9]} 27. hxg7 {[%clk 0:01:28.1]} 27... Rxg7
{[%clk 0:01:29.8]} 28. Bb2 {[%clk 0:01:28.1]} 28... Rgd7 {[%clk 0:01:26.6]} 29.
Qe2 {[%clk 0:01:24.8]} 29... Qb6 {[%clk 0:01:15.7]} 30. Rb3 {[%clk 0:01:19.3]}
30... Rd2 {[%clk 0:01:09.5]} 31. Qxd2 {[%clk 0:01:05.4]} 31... Rxd2 {[%clk
0:01:07]} 32. Rxb6 {[%clk 0:01:05.4]} 32... axb6 {[%clk 0:01:05.7]} 33. Kb1
{[%clk 0:01:04.8]} 33... Kd7 {[%clk 0:01:02.1]} 34. Rh1 {[%clk 0:01:04.2]} 34...
Kd6 {[%clk 0:00:59.9]} 35. Bc3 {[%clk 0:00:59.6]} 35... Rg2 {[%clk 0:00:57.1]}
36. Rxh7 {[%clk 0:00:59]} 36... f4 {[%clk 0:00:53.6]} 37. Rf7 {[%clk 0:00:55]}
37... e5 {[%clk 0:00:53.4]} 38. Kc1 {[%clk 0:00:44.4]} 38... Rg3 {[%clk
0:00:50.7]} 39. Kd2 {[%clk 0:00:43.6]} 39... Rg2+ {[%clk 0:00:51]} 40. Kc1
{[%clk 0:00:43.6]} 40... Rg3 {[%clk 0:00:50.4]} 41. Kd2 {[%clk 0:00:43.8]} 41...
Rg2+ {[%clk 0:00:50.8]} 42. Kc1 {[%clk 0:00:44]} 1/2-1/2

[Event "*** SCC Grand Prix: Titled Tuesday Blitz"]
[Site "Chess.com"]
[Date "2020.10.06"]
[Round "8"]
[White "GameOverBro"]
[Black "Alexander_Donchenko"]
[Result "0-1"]
[WhiteElo "2525"]
[BlackElo "2771"]
[TimeControl "180+1"]
[EndTime "11:34:27 PDT"]
[Termination "Alexander_Donchenko won by checkmate"]

1. e4 {[%clk 0:03:00.9]} 1... c6 {[%clk 0:03:00.2]} 2. Nc3 {[%clk 0:03:00.7]}
2... d5 {[%clk 0:03:01.1]} 3. Nf3 {[%clk 0:03:01.3]} 3... dxe4 {[%clk
0:03:01.4]} 4. Nxe4 {[%clk 0:03:02.2]} 4... Nf6 {[%clk 0:03:02]} 5. Qe2 {[%clk
0:03:02.6]} 5... Nxe4 {[%clk 0:03:01.7]} 6. Qxe4 {[%clk 0:03:02.5]} 6... Nd7
{[%clk 0:03:02.4]} 7. Bc4 {[%clk 0:03:02.9]} 7... Nf6 {[%clk 0:03:02.7]} 8. Ne5
{[%clk 0:03:03.5]} 8... e6 {[%clk 0:03:03.3]} 9. Qe2 {[%clk 0:03:04.1]} 9... b5
{[%clk 0:03:03.1]} 10. Bb3 {[%clk 0:03:03]} 10... Qc7 {[%clk 0:03:02.7]} 11. d4
{[%clk 0:03:01.5]} 11... Bd6 {[%clk 0:03:02.6]} 12. O-O {[%clk 0:02:58.1]} 12...
O-O {[%clk 0:03:02.5]} 13. Re1 {[%clk 0:02:53.8]} 13... Bb7 {[%clk 0:02:57.7]}
14. Bg5 {[%clk 0:02:47.7]} 14... Nd5 {[%clk 0:02:56.2]} 15. Qg4 {[%clk
0:02:17.7]} 15... f6 {[%clk 0:02:33.8]} 16. Qxe6+ {[%clk 0:02:02.2]} 16... Kh8
{[%clk 0:02:34.1]} 17. Bxd5 {[%clk 0:01:45.2]} 17... cxd5 {[%clk 0:02:31.4]} 18.
Nd7 {[%clk 0:00:26.6]} 18... Bc8 {[%clk 0:02:22.4]} 19. Nxf8 {[%clk 0:00:26.6]}
19... Bxe6 {[%clk 0:02:22.5]} 20. Nxe6 {[%clk 0:00:27.5]} 20... Qxc2 {[%clk
0:02:10.7]} 21. Bf4 {[%clk 0:00:27.2]} 21... Bxf4 {[%clk 0:02:07.4]} 22. Nxf4
{[%clk 0:00:28.1]} 22... Qxb2 {[%clk 0:02:07.8]} 23. Nxd5 {[%clk 0:00:27.5]}
23... Qxd4 {[%clk 0:02:07.4]} 24. Rad1 {[%clk 0:00:27.6]} 24... Qc4 {[%clk
0:02:05.5]} 25. Rd2 {[%clk 0:00:14.9]} 25... h6 {[%clk 0:02:02.7]} 26. Red1
{[%clk 0:00:15.1]} 26... Rd8 {[%clk 0:01:59.9]} 27. g3 {[%clk 0:00:15.4]} 27...
a5 {[%clk 0:01:58.4]} 28. h4 {[%clk 0:00:15.7]} 28... b4 {[%clk 0:01:57]} 29.
Kh2 {[%clk 0:00:13.3]} 29... a4 {[%clk 0:01:50.6]} 30. h5 {[%clk 0:00:13.4]}
30... Qg4 {[%clk 0:01:29.2]} 31. Kg2 {[%clk 0:00:02.8]} 31... Qxh5 {[%clk
0:01:26.6]} 32. f3 {[%clk 0:00:03.3]} 32... Qe5 {[%clk 0:01:24.1]} 33. Nxb4
{[%clk 0:00:02.9]} 33... Rxd2+ {[%clk 0:01:23.4]} 34. Rxd2 {[%clk 0:00:03.8]}
34... Qc3 {[%clk 0:01:22.2]} 35. Rd8+ {[%clk 0:00:04.4]} 35... Kh7 {[%clk
0:01:22.8]} 36. Rb8 {[%clk 0:00:05.2]} 36... a3 {[%clk 0:01:20.8]} 37. f4 {[%clk
0:00:05.2]} 37... h5 {[%clk 0:01:19.7]} 38. Kh3 {[%clk 0:00:05.5]} 38... Qf3
{[%clk 0:01:18.9]} 39. Rb5 {[%clk 0:00:05.2]} 39... Qh1# {[%clk 0:01:18.4]} 0-1

[Event "*** SCC Grand Prix: Titled Tuesday Blitz"]
[Site "Chess.com"]
[Date "2020.10.06"]
[Round "8"]
[White "Quiet_Desperation"]
[Black "Xeniya2005"]
[Result "0-1"]
[WhiteElo "1942"]
[BlackElo "2387"]
[TimeControl "180+1"]
[EndTime "11:34:34 PDT"]
[Termination "Xeniya2005 won by resignation"]

1. e4 {[%clk 0:03:00.9]} 1... e6 {[%clk 0:02:59.1]} 2. d4 {[%clk 0:03:00.3]}
2... d5 {[%clk 0:02:56.5]} 3. Nc3 {[%clk 0:03:00.8]} 3... Bb4 {[%clk 0:02:55.8]}
4. e5 {[%clk 0:03:01.2]} 4... c5 {[%clk 0:02:55.2]} 5. Bd2 {[%clk 0:03:01.6]}
5... Nc6 {[%clk 0:02:50.9]} 6. Nf3 {[%clk 0:03:00]} 6... Nge7 {[%clk 0:02:45.1]}
7. Bd3 {[%clk 0:02:52.6]} 7... h6 {[%clk 0:02:34.5]} 8. O-O {[%clk 0:02:51.1]}
8... O-O {[%clk 0:02:31.8]} 9. dxc5 {[%clk 0:02:41.4]} 9... Bxc5 {[%clk
0:02:28.3]} 10. Qc1 {[%clk 0:02:39.9]} 10... Nd4 {[%clk 0:02:15.9]} 11. Nxd4
{[%clk 0:02:34.4]} 11... Bxd4 {[%clk 0:02:14.6]} 12. Bxh6 {[%clk 0:02:30.6]}
12... gxh6 {[%clk 0:01:57.8]} 13. Qxh6 {[%clk 0:02:29.3]} 13... Nf5 {[%clk
0:01:28.9]} 14. Qf4 {[%clk 0:02:13.7]} 14... Qh4 {[%clk 0:01:20.7]} 15. g4
{[%clk 0:02:08.1]} 15... Bb6 {[%clk 0:00:24.5]} 16. Nxd5 {[%clk 0:01:38.6]}
16... exd5 {[%clk 0:00:17.2]} 17. Bxf5 {[%clk 0:01:38.6]} 17... Bxf5 {[%clk
0:00:16.8]} 18. Qxf5 {[%clk 0:01:39.5]} 18... Rae8 {[%clk 0:00:16.6]} 19. Rae1
{[%clk 0:01:39.1]} 19... Re6 {[%clk 0:00:14.7]} 20. g5 {[%clk 0:00:56.3]} 20...
Kg7 {[%clk 0:00:11.7]} 21. Re3 {[%clk 0:00:49]} 21... Rh8 {[%clk 0:00:10.6]} 22.
h3 {[%clk 0:00:35.1]} 22... Bxe3 {[%clk 0:00:09.8]} 23. fxe3 {[%clk 0:00:35.1]}
23... Qg3+ {[%clk 0:00:09.6]} 0-1

[Event "*** SCC Grand Prix: Titled Tuesday Blitz"]
[Site "Chess.com"]
[Date "2020.10.06"]
[Round "8"]
[White "olksuna"]
[Black "BanjoKazooieN64"]
[Result "1-0"]
[WhiteElo "2622"]
[BlackElo "2483"]
[TimeControl "180+1"]
[EndTime "11:34:35 PDT"]
[Termination "olksuna won by resignation"]

1. e4 {[%clk 0:03:00.9]} 1... e5 {[%clk 0:02:59.7]} 2. Nf3 {[%clk 0:03:00.1]}
2... Nc6 {[%clk 0:02:59.8]} 3. Bc4 {[%clk 0:03:00.5]} 3... Bc5 {[%clk
0:02:59.4]} 4. d3 {[%clk 0:02:59.4]} 4... d6 {[%clk 0:02:57.7]} 5. c3 {[%clk
0:02:59.4]} 5... Qf6 {[%clk 0:02:57.5]} 6. Nbd2 {[%clk 0:02:57.5]} 6... Qg6
{[%clk 0:02:57.4]} 7. g3 {[%clk 0:02:53.2]} 7... Bh3 {[%clk 0:02:50.9]} 8. Nf1
{[%clk 0:02:38.2]} 8... Bg2 {[%clk 0:02:02.6]} 9. Rg1 {[%clk 0:02:29.7]} 9...
Bxf1 {[%clk 0:01:37.2]} 10. Rxf1 {[%clk 0:02:27.4]} 10... O-O-O {[%clk 0:01:35]}
11. b4 {[%clk 0:02:17.1]} 11... Bb6 {[%clk 0:01:34]} 12. a4 {[%clk 0:02:15]}
12... a5 {[%clk 0:01:27.3]} 13. bxa5 {[%clk 0:02:02.2]} 13... Nxa5 {[%clk
0:01:20.3]} 14. Ba2 {[%clk 0:02:00.8]} 14... Ne7 {[%clk 0:00:56.5]} 15. Nh4
{[%clk 0:01:46.8]} 15... Qf6 {[%clk 0:00:56.3]} 16. Qg4+ {[%clk 0:01:45.8]}
16... Kb8 {[%clk 0:00:46.4]} 17. Bg5 {[%clk 0:01:45.5]} 17... h5 {[%clk
0:00:33.5]} 18. Bxf6 {[%clk 0:01:42.7]} 18... hxg4 {[%clk 0:00:33.9]} 19. Bxe7
{[%clk 0:01:42.8]} 19... Rde8 {[%clk 0:00:33.7]} 20. Bg5 {[%clk 0:01:37.9]}
20... f6 {[%clk 0:00:33.5]} 21. Be3 {[%clk 0:01:35.6]} 21... Bxe3 {[%clk
0:00:31.5]} 22. fxe3 {[%clk 0:01:35.7]} 22... g5 {[%clk 0:00:31.9]} 23. Ng6
{[%clk 0:01:23.5]} 23... Rxh2 {[%clk 0:00:32]} 24. Rxf6 {[%clk 0:01:21.4]} 24...
Rh6 {[%clk 0:00:12.5]} 25. O-O-O {[%clk 0:01:17.6]} 25... c6 {[%clk 0:00:09.1]}
26. Rdf1 {[%clk 0:01:15.1]} 26... d5 {[%clk 0:00:08.4]} 27. exd5 {[%clk
0:01:12.6]} 27... cxd5 {[%clk 0:00:08.9]} 28. Bxd5 {[%clk 0:01:11.9]} 28... Rd8
{[%clk 0:00:09.5]} 29. e4 {[%clk 0:01:11.6]} 29... Rh2 {[%clk 0:00:09.4]} 30.
R6f2 {[%clk 0:01:09.3]} 30... Rh3 {[%clk 0:00:09.3]} 31. Rg2 {[%clk 0:01:04.2]}
31... Rc8 {[%clk 0:00:09.8]} 32. Kd2 {[%clk 0:01:03.2]} 32... Rh6 {[%clk
0:00:08]} 33. Nxe5 {[%clk 0:01:00]} 33... Rb6 {[%clk 0:00:07.8]} 34. Nd7+ {[%clk
0:01:00.3]} 34... Ka7 {[%clk 0:00:08.4]} 35. Nxb6 {[%clk 0:01:01.2]} 1-0

[Event "*** SCC Grand Prix: Titled Tuesday Blitz"]
[Site "Chess.com"]
[Date "2020.10.06"]
[Round "8"]
[White "ehrenfeld"]
[Black "AliKa2810"]
[Result "0-1"]
[WhiteElo "2508"]
[BlackElo "2573"]
[TimeControl "180+1"]
[EndTime "11:34:40 PDT"]
[Termination "AliKa2810 won on time"]

1. e4 {[%clk 0:03:00.9]} 1... e6 {[%clk 0:02:59.4]} 2. d4 {[%clk 0:02:59.9]}
2... d5 {[%clk 0:03:00]} 3. e5 {[%clk 0:02:59.3]} 3... c5 {[%clk 0:02:59.8]} 4.
c3 {[%clk 0:02:56.9]} 4... Nc6 {[%clk 0:03:00]} 5. Nf3 {[%clk 0:02:56.5]} 5...
Qb6 {[%clk 0:02:59]} 6. a3 {[%clk 0:02:55.2]} 6... Nh6 {[%clk 0:02:58.8]} 7. b4
{[%clk 0:02:44.1]} 7... cxd4 {[%clk 0:02:56.9]} 8. Bxh6 {[%clk 0:02:43.6]} 8...
gxh6 {[%clk 0:02:57.8]} 9. cxd4 {[%clk 0:02:43.7]} 9... Bd7 {[%clk 0:02:54.9]}
10. Nc3 {[%clk 0:02:42.9]} 10... Rg8 {[%clk 0:02:49.3]} 11. g3 {[%clk
0:02:35.6]} 11... Nxb4 {[%clk 0:02:43.9]} 12. Bd3 {[%clk 0:01:25.1]} 12... Rc8
{[%clk 0:02:34.5]} 13. axb4 {[%clk 0:01:05.2]} 13... Bxb4 {[%clk 0:02:26.8]} 14.
O-O {[%clk 0:01:04.4]} 14... Rxc3 {[%clk 0:02:24.4]} 15. Bxh7 {[%clk 0:00:53.2]}
15... Rg7 {[%clk 0:02:23.3]} 16. Bd3 {[%clk 0:00:51.1]} 16... a5 {[%clk
0:02:23]} 17. Qe2 {[%clk 0:00:46.1]} 17... a4 {[%clk 0:02:18.7]} 18. Rfb1 {[%clk
0:00:45.4]} 18... Qa5 {[%clk 0:02:08.4]} 19. Ne1 {[%clk 0:00:35.5]} 19... Bc6
{[%clk 0:01:17.3]} 20. Qd2 {[%clk 0:00:26.9]} 20... Rb3 {[%clk 0:01:09.2]} 21.
Qxh6 {[%clk 0:00:24.7]} 21... Rxb1 {[%clk 0:01:09.1]} 22. Rxb1 {[%clk
0:00:22.6]} 22... Bf8 {[%clk 0:01:02.6]} 23. Qf6 {[%clk 0:00:16]} 23... a3
{[%clk 0:01:02]} 24. Nc2 {[%clk 0:00:14.7]} 24... a2 {[%clk 0:01:02.1]} 25. Rf1
{[%clk 0:00:12]} 25... Qc3 {[%clk 0:00:59.6]} 26. Qf3 {[%clk 0:00:09.8]} 26...
b5 {[%clk 0:00:54.3]} 27. Na1 {[%clk 0:00:06.6]} 27... b4 {[%clk 0:00:52.8]} 28.
h4 {[%clk 0:00:05.3]} 28... b3 {[%clk 0:00:51.3]} 29. Qe2 {[%clk 0:00:02.7]}
29... b2 {[%clk 0:00:49.5]} 0-1

[Event "*** SCC Grand Prix: Titled Tuesday Blitz"]
[Site "Chess.com"]
[Date "2020.10.06"]
[Round "8"]
[White "C_K_G"]
[Black "Klavdia_Nik"]
[Result "1-0"]
[WhiteElo "2029"]
[BlackElo "2137"]
[TimeControl "180+1"]
[EndTime "11:34:40 PDT"]
[Termination "C_K_G won on time"]

1. e4 {[%clk 0:03:00.9]} 1... g6 {[%clk 0:02:53]} 2. Nf3 {[%clk 0:03:01.8]} 2...
Bg7 {[%clk 0:02:53.2]} 3. Nc3 {[%clk 0:02:59.7]} 3... c5 {[%clk 0:02:51.7]} 4.
Bc4 {[%clk 0:02:56.9]} 4... Nc6 {[%clk 0:02:45.4]} 5. O-O {[%clk 0:02:55]} 5...
e6 {[%clk 0:02:45]} 6. Re1 {[%clk 0:02:50.3]} 6... d6 {[%clk 0:02:43]} 7. d3
{[%clk 0:02:49.1]} 7... Nge7 {[%clk 0:02:35.7]} 8. a3 {[%clk 0:02:48.9]} 8... h6
{[%clk 0:02:34.4]} 9. Ne2 {[%clk 0:02:45.3]} 9... Nd4 {[%clk 0:02:32.7]} 10.
Nexd4 {[%clk 0:02:43.2]} 10... cxd4 {[%clk 0:02:32.5]} 11. Bd2 {[%clk
0:02:40.9]} 11... O-O {[%clk 0:02:31.8]} 12. c3 {[%clk 0:02:39.5]} 12... d5
{[%clk 0:02:21.4]} 13. exd5 {[%clk 0:02:36.5]} 13... Nxd5 {[%clk 0:02:18.7]} 14.
Nxd4 {[%clk 0:02:32.8]} 14... a6 {[%clk 0:02:12.2]} 15. Ba2 {[%clk 0:02:25.3]}
15... Kh7 {[%clk 0:01:56.4]} 16. Qf3 {[%clk 0:02:22.9]} 16... Ne7 {[%clk
0:01:46.3]} 17. h3 {[%clk 0:02:13.1]} 17... Ng8 {[%clk 0:01:30.7]} 18. Bf4
{[%clk 0:02:09.2]} 18... Bxd4 {[%clk 0:01:28.9]} 19. cxd4 {[%clk 0:01:56]} 19...
Qxd4 {[%clk 0:01:29.3]} 20. Be5 {[%clk 0:01:51.2]} 20... Qd8 {[%clk 0:01:23]}
21. Re4 {[%clk 0:01:50.1]} 21... f6 {[%clk 0:01:02.9]} 22. Rd4 {[%clk
0:01:45.1]} 22... Qb6 {[%clk 0:00:56.4]} 23. Rb4 {[%clk 0:01:30.9]} 23... Qa5
{[%clk 0:00:49.2]} 24. Bc3 {[%clk 0:01:29.4]} 24... Qc7 {[%clk 0:00:27]} 25. Re1
{[%clk 0:01:27.8]} 25... e5 {[%clk 0:00:23.8]} 26. Bxe5 {[%clk 0:01:23.7]} 26...
Qg7 {[%clk 0:00:07.4]} 27. Bc3 {[%clk 0:01:18.5]} 27... a5 {[%clk 0:00:07.5]}
28. Rb6 {[%clk 0:01:14.6]} 28... Ra6 {[%clk 0:00:06.6]} 29. Rxa6 {[%clk
0:01:13.8]} 29... bxa6 {[%clk 0:00:07.2]} 30. Bxg8+ {[%clk 0:01:10.1]} 30...
Kxg8 {[%clk 0:00:06]} 31. Qd5+ {[%clk 0:01:08.9]} 31... Kh7 {[%clk 0:00:02.9]}
32. Bxa5 {[%clk 0:01:04.9]} 1-0

[Event "*** SCC Grand Prix: Titled Tuesday Blitz"]
[Site "Chess.com"]
[Date "2020.10.06"]
[Round "8"]
[White "Indianlad"]
[Black "Alexander_Kachko"]
[Result "1-0"]
[WhiteElo "2929"]
[BlackElo "2742"]
[TimeControl "180+1"]
[EndTime "11:34:41 PDT"]
[Termination "Indianlad won by resignation"]

1. Nf3 {[%clk 0:03:00.9]} 1... d5 {[%clk 0:02:55.2]} 2. d4 {[%clk 0:02:59.9]}
2... c6 {[%clk 0:02:49.8]} 3. Bf4 {[%clk 0:02:59.8]} 3... Nf6 {[%clk 0:02:49.2]}
4. e3 {[%clk 0:02:59.9]} 4... Bf5 {[%clk 0:02:49.2]} 5. c4 {[%clk 0:02:59.9]}
5... e6 {[%clk 0:02:49]} 6. Nc3 {[%clk 0:03:00.4]} 6... Nbd7 {[%clk 0:02:43.3]}
7. Qb3 {[%clk 0:02:59.5]} 7... Qb6 {[%clk 0:02:42.7]} 8. c5 {[%clk 0:02:59.5]}
8... Qxb3 {[%clk 0:02:39.8]} 9. axb3 {[%clk 0:03:00.4]} 9... a6 {[%clk
0:02:37.5]} 10. b4 {[%clk 0:02:58.3]} 10... Rc8 {[%clk 0:02:34.5]} 11. h3 {[%clk
0:02:57.3]} 11... h6 {[%clk 0:02:27.3]} 12. Nd2 {[%clk 0:02:57.1]} 12... Be7
{[%clk 0:02:05.8]} 13. Nb3 {[%clk 0:02:57]} 13... Bd8 {[%clk 0:02:05.5]} 14. Na5
{[%clk 0:02:47.6]} 14... Bxa5 {[%clk 0:02:04.3]} 15. bxa5 {[%clk 0:02:47.7]}
15... Ne4 {[%clk 0:01:45.1]} 16. f3 {[%clk 0:02:45]} 16... Nxc3 {[%clk
0:01:24.2]} 17. bxc3 {[%clk 0:02:45.9]} 17... f6 {[%clk 0:01:24.7]} 18. Bd6
{[%clk 0:02:39.2]} 18... e5 {[%clk 0:01:20.5]} 19. Kd2 {[%clk 0:02:39.3]} 19...
Ra8 {[%clk 0:00:47]} 20. Bd3 {[%clk 0:02:36.3]} 20... Bxd3 {[%clk 0:00:46.7]}
21. Kxd3 {[%clk 0:02:37.2]} 21... Kd8 {[%clk 0:00:46.3]} 22. Rab1 {[%clk
0:02:32.4]} 22... Kc8 {[%clk 0:00:37.8]} 23. e4 {[%clk 0:02:21.9]} 23... Re8
{[%clk 0:00:30]} 24. Rb2 {[%clk 0:02:22.1]} 24... exd4 {[%clk 0:00:24.4]} 25.
cxd4 {[%clk 0:02:21.9]} 25... b5 {[%clk 0:00:17.9]} 26. cxb6 {[%clk 0:02:18.1]}
26... dxe4+ {[%clk 0:00:17.6]} 27. fxe4 {[%clk 0:02:18]} 27... Kb7 {[%clk
0:00:18.5]} 28. Rc1 {[%clk 0:02:17]} 28... Rac8 {[%clk 0:00:18.3]} 29. Rbc2
{[%clk 0:02:16.6]} 29... Re6 {[%clk 0:00:15.8]} 30. Bh2 {[%clk 0:02:14.7]} 30...
f5 {[%clk 0:00:14]} 31. d5 {[%clk 0:02:09.4]} 31... fxe4+ {[%clk 0:00:13.4]} 32.
Ke2 {[%clk 0:02:08.2]} 32... Rf6 {[%clk 0:00:11.7]} 33. dxc6+ {[%clk 0:02:00.2]}
33... Rfxc6 {[%clk 0:00:12.6]} 34. Rxc6 {[%clk 0:02:00.5]} 34... Rxc6 {[%clk
0:00:13.5]} 35. Rxc6 {[%clk 0:02:00.6]} 35... Kxc6 {[%clk 0:00:13.5]} 36. Ke3
{[%clk 0:02:01.3]} 36... Nc5 {[%clk 0:00:13.7]} 37. Be5 {[%clk 0:02:01.5]} 37...
g6 {[%clk 0:00:13.8]} 38. Bd4 {[%clk 0:02:00.6]} 38... Nb7 {[%clk 0:00:13.1]}
39. Bc3 {[%clk 0:02:01.2]} 39... Kd5 {[%clk 0:00:13.5]} 40. g4 {[%clk
0:01:59.7]} 40... h5 {[%clk 0:00:13.8]} 41. Bd2 {[%clk 0:01:53.1]} 41... hxg4
{[%clk 0:00:13.6]} 42. hxg4 {[%clk 0:01:53.9]} 42... Nc5 {[%clk 0:00:13.9]} 43.
Be1 {[%clk 0:01:54.2]} 43... Nb7 {[%clk 0:00:13.1]} 44. Kf4 {[%clk 0:01:53.9]}
44... Kd4 {[%clk 0:00:13.2]} 45. Kg5 {[%clk 0:01:54.4]} 45... e3 {[%clk
0:00:13.1]} 46. Kxg6 {[%clk 0:01:54.9]} 46... Kd3 {[%clk 0:00:10.2]} 47. Kf6
{[%clk 0:01:55.5]} 47... Ke2 {[%clk 0:00:09.4]} 48. Bb4 {[%clk 0:01:55.2]} 48...
Kd3 {[%clk 0:00:03.4]} 49. g5 {[%clk 0:01:55.4]} 49... Kc4 {[%clk 0:00:03.5]}
50. Be1 {[%clk 0:01:55.5]} 50... Nd6 {[%clk 0:00:03.9]} 51. g6 {[%clk
0:01:55.2]} 51... e2 {[%clk 0:00:03.6]} 52. g7 {[%clk 0:01:54.5]} 52... Ne4+
{[%clk 0:00:04.1]} 53. Ke7 {[%clk 0:01:54.7]} 1-0

[Event "*** SCC Grand Prix: Titled Tuesday Blitz"]
[Site "Chess.com"]
[Date "2020.10.06"]
[Round "8"]
[White "Igor_Bitensky"]
[Black "Shankovskyi"]
[Result "0-1"]
[WhiteElo "2316"]
[BlackElo "2469"]
[TimeControl "180+1"]
[EndTime "11:34:43 PDT"]
[Termination "Shankovskyi won on time"]

1. Nf3 {[%clk 0:03:00.9]} 1... e6 {[%clk 0:03:00.9]} 2. g3 {[%clk 0:03:00.9]}
2... d5 {[%clk 0:02:57.5]} 3. Bg2 {[%clk 0:03:01.8]} 3... Nf6 {[%clk 0:02:57.8]}
4. O-O {[%clk 0:03:01.9]} 4... Be7 {[%clk 0:02:58.2]} 5. d3 {[%clk 0:03:02.3]}
5... O-O {[%clk 0:02:58.3]} 6. Nbd2 {[%clk 0:03:02.3]} 6... c5 {[%clk
0:02:58.7]} 7. e4 {[%clk 0:03:02.2]} 7... Re8 {[%clk 0:02:56.7]} 8. e5 {[%clk
0:03:00.1]} 8... Nfd7 {[%clk 0:02:56.1]} 9. Re1 {[%clk 0:03:01]} 9... b5 {[%clk
0:02:51.3]} 10. h4 {[%clk 0:02:59.9]} 10... a5 {[%clk 0:02:49.1]} 11. Nf1 {[%clk
0:03:00.4]} 11... a4 {[%clk 0:02:49]} 12. h5 {[%clk 0:03:00.6]} 12... h6 {[%clk
0:02:48.6]} 13. N1h2 {[%clk 0:03:00]} 13... a3 {[%clk 0:02:47.2]} 14. b3 {[%clk
0:02:59.9]} 14... Bf8 {[%clk 0:02:38.4]} 15. Bf4 {[%clk 0:02:45.2]} 15... Nc6
{[%clk 0:02:37]} 16. Qd2 {[%clk 0:02:34.9]} 16... Nd4 {[%clk 0:02:30.7]} 17.
Nxd4 {[%clk 0:02:29.8]} 17... cxd4 {[%clk 0:02:31.6]} 18. Nf3 {[%clk 0:02:20.2]}
18... Qb6 {[%clk 0:02:31.7]} 19. Re2 {[%clk 0:01:51.2]} 19... Bb7 {[%clk
0:02:23.1]} 20. Rf1 {[%clk 0:01:44.1]} 20... Rac8 {[%clk 0:02:23]} 21. g4 {[%clk
0:01:39.9]} 21... f6 {[%clk 0:01:38.6]} 22. exf6 {[%clk 0:01:37.5]} 22... Nxf6
{[%clk 0:01:39.5]} 23. Ne5 {[%clk 0:01:30.5]} 23... Bd6 {[%clk 0:01:19.5]} 24.
Bh3 {[%clk 0:00:55.8]} 24... Qc7 {[%clk 0:01:12.5]} 25. Rfe1 {[%clk 0:00:50.3]}
25... Rcd8 {[%clk 0:01:09.9]} 26. f3 {[%clk 0:00:19.8]} 26... Bc8 {[%clk
0:01:09.9]} 27. Kg2 {[%clk 0:00:18.1]} 27... Rf8 {[%clk 0:01:05.7]} 28. Rh1
{[%clk 0:00:15]} 28... Rde8 {[%clk 0:01:05.7]} 29. Kg1 {[%clk 0:00:12.1]} 29...
Nd7 {[%clk 0:01:01.5]} 30. Nxd7 {[%clk 0:00:03.4]} 30... Bxd7 {[%clk 0:01:02.4]}
31. Bxd6 {[%clk 0:00:02.4]} 31... Qxd6 {[%clk 0:01:03.3]} 32. Kg2 {[%clk
0:00:02.5]} 32... Rf4 {[%clk 0:01:02.5]} 33. Rhe1 {[%clk 0:00:02.1]} 33... e5
{[%clk 0:01:02.3]} 0-1

[Event "*** SCC Grand Prix: Titled Tuesday Blitz"]
[Site "Chess.com"]
[Date "2020.10.06"]
[Round "8"]
[White "Manukyan_Artak"]
[Black "chessmadara"]
[Result "1-0"]
[WhiteElo "2297"]
[BlackElo "2117"]
[TimeControl "180+1"]
[EndTime "11:34:45 PDT"]
[Termination "Manukyan_Artak won by resignation"]

1. e4 {[%clk 0:03:00.9]} 1... c5 {[%clk 0:02:58.3]} 2. Nf3 {[%clk 0:02:55.9]}
2... Nc6 {[%clk 0:02:57.4]} 3. c3 {[%clk 0:02:54.6]} 3... Nf6 {[%clk 0:02:54.8]}
4. e5 {[%clk 0:02:54.4]} 4... Nd5 {[%clk 0:02:55.1]} 5. d4 {[%clk 0:02:54]} 5...
cxd4 {[%clk 0:02:55.7]} 6. cxd4 {[%clk 0:02:54]} 6... d6 {[%clk 0:02:55.5]} 7.
Nc3 {[%clk 0:02:53.9]} 7... Nxc3 {[%clk 0:02:52]} 8. bxc3 {[%clk 0:02:54.1]}
8... e6 {[%clk 0:02:51.4]} 9. Bf4 {[%clk 0:02:52.8]} 9... Qa5 {[%clk 0:02:46.8]}
10. Rc1 {[%clk 0:02:50.9]} 10... dxe5 {[%clk 0:02:41.9]} 11. Nxe5 {[%clk
0:02:48.6]} 11... Be7 {[%clk 0:02:23.3]} 12. Bd3 {[%clk 0:02:44.8]} 12... Qxa2
{[%clk 0:02:10.9]} 13. O-O {[%clk 0:02:42.3]} 13... Bf6 {[%clk 0:01:58.7]} 14.
Bb5 {[%clk 0:01:59.5]} 14... Bxe5 {[%clk 0:01:28.9]} 15. Bxe5 {[%clk 0:01:56.1]}
15... O-O {[%clk 0:01:24.6]} 16. Bg3 {[%clk 0:01:48.7]} 16... Qd5 {[%clk
0:01:22.2]} 17. Bd3 {[%clk 0:01:46.9]} 17... Ne7 {[%clk 0:01:17.8]} 18. Re1
{[%clk 0:01:46]} 18... Ng6 {[%clk 0:01:17.4]} 19. h4 {[%clk 0:01:38.8]} 19...
Bd7 {[%clk 0:01:05.1]} 20. h5 {[%clk 0:01:38.9]} 20... Ne7 {[%clk 0:01:04.4]}
21. h6 {[%clk 0:01:39.1]} 21... g6 {[%clk 0:01:03]} 22. Re5 {[%clk 0:01:34.1]}
22... Qc6 {[%clk 0:00:59.9]} 23. Rc5 {[%clk 0:01:30.6]} 23... Qa4 {[%clk
0:00:47.7]} 24. Qf3 {[%clk 0:01:26.4]} 24... Nf5 {[%clk 0:00:43.5]} 25. Bxf5
{[%clk 0:01:16.3]} 25... exf5 {[%clk 0:00:42.9]} 26. Qxb7 {[%clk 0:01:16]} 26...
Qa3 {[%clk 0:00:32.6]} 27. Re1 {[%clk 0:01:10.4]} 27... Ba4 {[%clk 0:00:12.3]}
28. Qa6 {[%clk 0:00:46.1]} 28... Qb3 {[%clk 0:00:11.7]} 29. Qf6 {[%clk
0:00:44.7]} 1-0